[Event "*** SCC Grand Prix: Titled Tuesday Blitz"]
[Site "Chess.com"]
[Date "2020.06.09"]
[Round "1"]
[White "Oglob71"]
[Black "MisiekZielony"]
[Result "1-0"]
[WhiteElo "2521"]
[BlackElo "2114"]
[TimeControl "180+1"]
[EndTime "9:08:39 PDT"]
[Termination "Oglob71 won on time"]

1. d4 {[%clk 0:02:59.4]} 1... d5 {[%clk 0:02:59.5]} 2. Nf3 {[%clk 0:02:59.8]}
2... Nf6 {[%clk 0:02:59]} 3. c4 {[%clk 0:03:00.2]} 3... c6 {[%clk 0:02:58.9]} 4.
e3 {[%clk 0:03:00.4]} 4... g6 {[%clk 0:02:58.5]} 5. Nc3 {[%clk 0:02:59.2]} 5...
Bg7 {[%clk 0:02:58.4]} 6. Bd2 {[%clk 0:02:59.6]} 6... O-O {[%clk 0:02:58.2]} 7.
Qb3 {[%clk 0:03:00.2]} 7... b6 {[%clk 0:02:31.6]} 8. Be2 {[%clk 0:02:59.6]} 8...
Ba6 {[%clk 0:02:12]} 9. O-O {[%clk 0:02:59.1]} 9... Ne4 {[%clk 0:02:02.3]} 10.
Rfd1 {[%clk 0:02:47.8]} 10... Nxd2 {[%clk 0:01:59.3]} 11. Rxd2 {[%clk
0:02:47.5]} 11... e6 {[%clk 0:01:51.8]} 12. Rc1 {[%clk 0:02:42.1]} 12... Bb7
{[%clk 0:01:25.7]} 13. a3 {[%clk 0:02:40.6]} 13... Nd7 {[%clk 0:01:24.6]} 14.
cxd5 {[%clk 0:02:40.4]} 14... exd5 {[%clk 0:01:23.9]} 15. Qc2 {[%clk 0:02:34.5]}
15... Re8 {[%clk 0:01:21]} 16. b4 {[%clk 0:02:32.8]} 16... Qe7 {[%clk
0:01:05.6]} 17. Bf1 {[%clk 0:02:29]} 17... b5 {[%clk 0:01:02.2]} 18. a4 {[%clk
0:02:20.9]} 18... a6 {[%clk 0:01:00.9]} 19. Rb1 {[%clk 0:02:05.3]} 19... Nb6
{[%clk 0:01:00.2]} 20. Re2 {[%clk 0:02:03.1]} 20... f5 {[%clk 0:00:59.6]} 21. g3
{[%clk 0:01:54.2]} 21... Nc4 {[%clk 0:00:59.1]} 22. Qb3 {[%clk 0:01:46.3]} 22...
Bf8 {[%clk 0:00:57.4]} 23. Ne1 {[%clk 0:01:36.9]} 23... Qf6 {[%clk 0:00:51.1]}
24. Nd3 {[%clk 0:01:36.9]} 24... Bd6 {[%clk 0:00:51.1]} 25. Nc5 {[%clk
0:01:21.9]} 25... Bxc5 {[%clk 0:00:50.2]} 26. bxc5 {[%clk 0:01:20.9]} 26... g5
{[%clk 0:00:49.3]} 27. Rbe1 {[%clk 0:01:10.7]} 27... Re7 {[%clk 0:00:47.1]} 28.
Na2 {[%clk 0:01:06.6]} 28... Rae8 {[%clk 0:00:44.1]} 29. Nb4 {[%clk 0:01:06]}
29... f4 {[%clk 0:00:42.2]} 30. exf4 {[%clk 0:01:00.6]} 30... Rxe2 {[%clk
0:00:40.8]} 31. Rxe2 {[%clk 0:01:00.9]} 31... Rxe2 {[%clk 0:00:40.2]} 32. Bxe2
{[%clk 0:01:01.5]} 32... gxf4 {[%clk 0:00:39.7]} 33. Qf3 {[%clk 0:01:00]} 33...
Qxd4 {[%clk 0:00:39.4]} 34. Qg4+ {[%clk 0:00:59.8]} 34... Qg7 {[%clk 0:00:36]}
35. Qxf4 {[%clk 0:00:58.6]} 35... Qe5 {[%clk 0:00:30.6]} 36. Qg4+ {[%clk
0:00:55.6]} 36... Kf8 {[%clk 0:00:30.7]} 37. axb5 {[%clk 0:00:52.7]} 37... axb5
{[%clk 0:00:30.5]} 38. Nd3 {[%clk 0:00:47.8]} 38... Qf6 {[%clk 0:00:28.1]} 39.
Nf4 {[%clk 0:00:42.7]} 39... b4 {[%clk 0:00:25]} 40. Qd7 {[%clk 0:00:41.5]}
40... Qe7 {[%clk 0:00:23.7]} 41. Ne6+ {[%clk 0:00:39.4]} 41... Kf7 {[%clk
0:00:23.8]} 42. Nd8+ {[%clk 0:00:39]} 42... Kf6 {[%clk 0:00:23.9]} 43. Qxe7+
{[%clk 0:00:28.6]} 43... Kxe7 {[%clk 0:00:23.6]} 44. Nxb7 {[%clk 0:00:29.5]}
44... b3 {[%clk 0:00:22.6]} 45. Bd3 {[%clk 0:00:28.9]} 45... h6 {[%clk
0:00:17.9]} 46. Kf1 {[%clk 0:00:26.4]} 46... Na3 {[%clk 0:00:17.5]} 47. Na5
{[%clk 0:00:24.7]} 47... b2 {[%clk 0:00:17.2]} 48. Nxc6+ {[%clk 0:00:24.4]}
48... Ke6 {[%clk 0:00:17.1]} 49. Nb4 {[%clk 0:00:21.9]} 49... b1=Q+ {[%clk
0:00:15.7]} 50. Bxb1 {[%clk 0:00:21.9]} 50... Nxb1 {[%clk 0:00:16]} 51. Ke2
{[%clk 0:00:20.1]} 51... Nc3+ {[%clk 0:00:16.1]} 52. Kd3 {[%clk 0:00:20.5]}
52... Ne4 {[%clk 0:00:16.2]} 53. f3 {[%clk 0:00:20.1]} 53... Nxc5+ {[%clk
0:00:15.9]} 54. Ke3 {[%clk 0:00:20.3]} 54... Kd6 {[%clk 0:00:14.6]} 55. Nd3
{[%clk 0:00:20.7]} 55... Ne6 {[%clk 0:00:14.7]} 56. f4 {[%clk 0:00:20.6]} 56...
Ke7 {[%clk 0:00:14.6]} 57. g4 {[%clk 0:00:20]} 57... Kf6 {[%clk 0:00:14.2]} 58.
h3 {[%clk 0:00:20.3]} 58... Ke7 {[%clk 0:00:13.5]} 59. Ne5 {[%clk 0:00:20.6]}
59... Kf6 {[%clk 0:00:13]} 60. Nf3 {[%clk 0:00:21]} 60... Ke7 {[%clk 0:00:12.4]}
61. Nd4 {[%clk 0:00:21.5]} 61... Nc5 {[%clk 0:00:12.8]} 62. Nf5+ {[%clk
0:00:21.5]} 62... Kf6 {[%clk 0:00:12.8]} 63. Nxh6 {[%clk 0:00:22.1]} 1-0

[Event "*** SCC Grand Prix: Titled Tuesday Blitz"]
[Site "Chess.com"]
[Date "2020.06.09"]
[Round "1"]
[White "ketster"]
[Black "Nyzhnyk_Illia"]
[Result "1/2-1/2"]
[WhiteElo "2450"]
[BlackElo "2863"]
[TimeControl "180+1"]
[EndTime "9:08:55 PDT"]
[Termination "Game drawn by agreement"]

1. d4 {[%clk 0:03:00.3]} 1... Nf6 {[%clk 0:02:59.4]} 2. c4 {[%clk 0:02:58.9]}
2... g6 {[%clk 0:02:59.6]} 3. Nc3 {[%clk 0:02:58.3]} 3... Bg7 {[%clk 0:03:00.2]}
4. e4 {[%clk 0:02:58.1]} 4... O-O {[%clk 0:03:00.4]} 5. Nf3 {[%clk 0:02:57.3]}
5... d6 {[%clk 0:03:00.7]} 6. h3 {[%clk 0:02:57]} 6... e5 {[%clk 0:02:56.1]} 7.
d5 {[%clk 0:02:56.3]} 7... a5 {[%clk 0:02:55.8]} 8. Be3 {[%clk 0:02:53.9]} 8...
Na6 {[%clk 0:02:56.2]} 9. g4 {[%clk 0:02:53.5]} 9... Nd7 {[%clk 0:02:56.2]} 10.
a3 {[%clk 0:02:48.1]} 10... Ndc5 {[%clk 0:02:56.4]} 11. b4 {[%clk 0:02:42.8]}
11... Nd7 {[%clk 0:02:48.8]} 12. Rb1 {[%clk 0:02:40.5]} 12... axb4 {[%clk
0:02:47.2]} 13. axb4 {[%clk 0:02:40.1]} 13... f5 {[%clk 0:02:43.9]} 14. gxf5
{[%clk 0:02:27.9]} 14... gxf5 {[%clk 0:02:44.8]} 15. Ng5 {[%clk 0:02:22.7]}
15... Nf6 {[%clk 0:02:15.9]} 16. Rg1 {[%clk 0:02:12.8]} 16... f4 {[%clk
0:02:09.3]} 17. Bd2 {[%clk 0:02:06.8]} 17... Kh8 {[%clk 0:02:09.1]} 18. h4
{[%clk 0:01:35.5]} 18... Qe8 {[%clk 0:02:03.6]} 19. Bh3 {[%clk 0:01:28.9]} 19...
Bxh3 {[%clk 0:01:57.5]} 20. Nxh3 {[%clk 0:01:25.2]} 20... h6 {[%clk 0:01:57.9]}
21. Rg2 {[%clk 0:01:07.4]} 21... Rg8 {[%clk 0:01:28.7]} 22. Ng1 {[%clk
0:01:06.6]} 22... Bf8 {[%clk 0:01:28.6]} 23. Rxg8+ {[%clk 0:01:05.5]} 23... Nxg8
{[%clk 0:01:28.1]} 24. Qg4 {[%clk 0:00:59.8]} 24... Be7 {[%clk 0:01:28]} 25. Nf3
{[%clk 0:00:59]} 25... Nf6 {[%clk 0:01:22.4]} 26. Qg2 {[%clk 0:00:58]} 26... Qh5
{[%clk 0:01:20.6]} 27. Ke2 {[%clk 0:00:47.9]} 27... Rg8 {[%clk 0:01:19.2]} 28.
Qh3 {[%clk 0:00:44.1]} 28... Ng4 {[%clk 0:01:04.9]} 29. Nb5 {[%clk 0:00:41.2]}
29... Kh7 {[%clk 0:00:47.7]} 30. Rg1 {[%clk 0:00:33.2]} 30... Bd8 {[%clk
0:00:46.8]} 31. Rg2 {[%clk 0:00:25.7]} 31... Rg6 {[%clk 0:00:41.9]} 32. Na3
{[%clk 0:00:19.7]} 32... c6 {[%clk 0:00:41.1]} 33. Nc2 {[%clk 0:00:19.5]} 33...
Bb6 {[%clk 0:00:37.8]} 34. Nce1 {[%clk 0:00:16.4]} 34... cxd5 {[%clk 0:00:35.2]}
35. cxd5 {[%clk 0:00:15.8]} 35... Nc7 {[%clk 0:00:35.6]} 36. Nd3 {[%clk
0:00:15.3]} 36... Nb5 {[%clk 0:00:34.3]} 37. Ke1 {[%clk 0:00:14.3]} 37... Nd4
{[%clk 0:00:29.8]} 38. Nxd4 {[%clk 0:00:13.7]} 38... Bxd4 {[%clk 0:00:30.7]} 39.
f3 {[%clk 0:00:13.1]} 39... Nf6 {[%clk 0:00:31.4]} 40. Rxg6 {[%clk 0:00:12]}
40... Qxg6 {[%clk 0:00:31.7]} 41. Qh1 {[%clk 0:00:10]} 41... Qg3+ {[%clk
0:00:31.2]} 42. Ke2 {[%clk 0:00:10.2]} 42... Nh5 {[%clk 0:00:28.4]} 43. Be1
{[%clk 0:00:10.1]} 43... Qg7 {[%clk 0:00:21.7]} 44. Qh3 {[%clk 0:00:10.3]} 44...
Ng3+ {[%clk 0:00:20.8]} 45. Kd1 {[%clk 0:00:09.3]} 45... Qc7 {[%clk 0:00:19.7]}
46. Qe6 {[%clk 0:00:08.1]} 46... Kg7 {[%clk 0:00:15]} 47. h5 {[%clk 0:00:06.8]}
47... Qf7 {[%clk 0:00:12.7]} 48. Qg4+ {[%clk 0:00:06.4]} 48... Kh7 {[%clk
0:00:12.5]} 49. Bxg3 {[%clk 0:00:05.6]} 49... fxg3 {[%clk 0:00:13.4]} 50. Qxg3
{[%clk 0:00:05.9]} 50... Qxh5 {[%clk 0:00:14]} 51. Qg4 {[%clk 0:00:05.4]} 51...
Qxg4 {[%clk 0:00:14.3]} 52. fxg4 {[%clk 0:00:05.5]} 52... Kg6 {[%clk 0:00:15.2]}
53. Ke2 {[%clk 0:00:06]} 53... Kg5 {[%clk 0:00:15.4]} 54. Kf3 {[%clk 0:00:06.3]}
54... b5 {[%clk 0:00:15.8]} 55. Nc1 {[%clk 0:00:06.4]} 55... Bc3 {[%clk
0:00:15.8]} 56. Na2 {[%clk 0:00:06.3]} 56... Bd2 {[%clk 0:00:16.3]} 57. Kg3
{[%clk 0:00:06.2]} 57... Bf4+ {[%clk 0:00:13.8]} 58. Kf3 {[%clk 0:00:06.2]}
58... Bd2 {[%clk 0:00:14.5]} 59. Kg3 {[%clk 0:00:06.1]} 59... Kf6 {[%clk
0:00:12.3]} 60. Kh4 {[%clk 0:00:06.1]} 60... Be1+ {[%clk 0:00:11.1]} 61. Kh5
{[%clk 0:00:06.3]} 61... Kf7 {[%clk 0:00:11.6]} 62. g5 {[%clk 0:00:04.4]} 62...
hxg5 {[%clk 0:00:11.6]} 63. Kxg5 {[%clk 0:00:03.7]} 63... Bd2+ {[%clk
0:00:12.2]} 64. Kf5 {[%clk 0:00:03.7]} 64... Ke7 {[%clk 0:00:12.7]} 65. Kg6
{[%clk 0:00:03.7]} 65... Be3 {[%clk 0:00:13]} 66. Kg7 {[%clk 0:00:03.8]} 66...
Bd4 {[%clk 0:00:13.4]} 67. Kg6 {[%clk 0:00:04.1]} 67... Kd7 {[%clk 0:00:13.1]}
68. Kg7 {[%clk 0:00:04.2]} 68... Bb2 {[%clk 0:00:13.2]} 69. Kg6 {[%clk
0:00:04.5]} 69... Ke7 {[%clk 0:00:13.3]} 70. Kg7 {[%clk 0:00:04.7]} 70... Ba3
{[%clk 0:00:13]} 71. Kg6 {[%clk 0:00:05]} 71... Kd7 {[%clk 0:00:13.4]} 72. Kg7
{[%clk 0:00:05.2]} 72... Kc7 {[%clk 0:00:14]} 73. Kf7 {[%clk 0:00:05.2]} 73...
Bb2 {[%clk 0:00:12.3]} 74. Ke7 {[%clk 0:00:05]} 74... Bd4 {[%clk 0:00:12.5]} 75.
Ke6 {[%clk 0:00:04.7]} 75... Bb2 {[%clk 0:00:12.7]} 76. Ke7 {[%clk 0:00:04.9]}
1/2-1/2

[Event "*** SCC Grand Prix: Titled Tuesday Blitz"]
[Site "Chess.com"]
[Date "2020.06.09"]
[Round "1"]
[White "AshotParvanyan"]
[Black "Andreikka"]
[Result "0-1"]
[WhiteElo "2447"]
[BlackElo "2904"]
[TimeControl "180+1"]
[EndTime "9:09:00 PDT"]
[Termination "Andreikka won on time"]

1. Nf3 {[%clk 0:02:55.6]} 1... d5 {[%clk 0:02:59.8]} 2. d4 {[%clk 0:02:53.1]}
2... Nf6 {[%clk 0:02:59.1]} 3. c4 {[%clk 0:02:52.2]} 3... e6 {[%clk 0:02:59.4]}
4. g3 {[%clk 0:02:50.8]} 4... Be7 {[%clk 0:02:56.6]} 5. Bg2 {[%clk 0:02:49.6]}
5... O-O {[%clk 0:02:57.1]} 6. O-O {[%clk 0:02:49.3]} 6... dxc4 {[%clk
0:02:57.6]} 7. Qc2 {[%clk 0:02:49.1]} 7... a6 {[%clk 0:02:57.1]} 8. a4 {[%clk
0:02:48.9]} 8... Bd7 {[%clk 0:02:57.1]} 9. Qxc4 {[%clk 0:02:48.4]} 9... Bc6
{[%clk 0:02:57.6]} 10. Bg5 {[%clk 0:02:48.1]} 10... Nbd7 {[%clk 0:02:56.6]} 11.
Nc3 {[%clk 0:02:35.2]} 11... h6 {[%clk 0:02:56.5]} 12. Bxf6 {[%clk 0:02:34.8]}
12... Nxf6 {[%clk 0:02:57.4]} 13. b4 {[%clk 0:02:31.5]} 13... Bd5 {[%clk
0:02:52.8]} 14. Nxd5 {[%clk 0:02:29.4]} 14... exd5 {[%clk 0:02:53.7]} 15. Qb3
{[%clk 0:02:28.1]} 15... Bd6 {[%clk 0:02:51.3]} 16. b5 {[%clk 0:02:00.6]} 16...
axb5 {[%clk 0:02:32.9]} 17. axb5 {[%clk 0:01:56.8]} 17... c6 {[%clk 0:02:33.3]}
18. bxc6 {[%clk 0:01:43.4]} 18... bxc6 {[%clk 0:02:34.2]} 19. Qb7 {[%clk
0:01:34.3]} 19... Qc8 {[%clk 0:02:28.3]} 20. Qxc8 {[%clk 0:00:55.1]} 20... Rfxc8
{[%clk 0:02:26.9]} 21. e3 {[%clk 0:00:49.1]} 21... g6 {[%clk 0:02:15.9]} 22.
Rfc1 {[%clk 0:00:44.2]} 22... Rxa1 {[%clk 0:02:12.5]} 23. Rxa1 {[%clk
0:00:43.8]} 23... Kg7 {[%clk 0:02:13]} 24. Rc1 {[%clk 0:00:36.8]} 24... Rc7
{[%clk 0:02:07.5]} 25. Nd2 {[%clk 0:00:32.4]} 25... c5 {[%clk 0:01:59.9]} 26.
dxc5 {[%clk 0:00:25.8]} 26... Rxc5 {[%clk 0:02:00.8]} 27. Rxc5 {[%clk
0:00:23.8]} 27... Bxc5 {[%clk 0:02:01.7]} 28. Nb3 {[%clk 0:00:19.8]} 28... Bb6
{[%clk 0:02:02.2]} 29. Bf3 {[%clk 0:00:18.2]} 29... Kf8 {[%clk 0:02:02.4]} 30.
Kf1 {[%clk 0:00:18.1]} 30... h5 {[%clk 0:02:02]} 31. Ke2 {[%clk 0:00:18.3]}
31... Ke7 {[%clk 0:02:02.5]} 32. Kd3 {[%clk 0:00:17.7]} 32... Kd6 {[%clk
0:02:02.9]} 33. Nd4 {[%clk 0:00:16.1]} 33... Nd7 {[%clk 0:02:03.3]} 34. Bg2
{[%clk 0:00:13.4]} 34... Ne5+ {[%clk 0:02:02.2]} 35. Ke2 {[%clk 0:00:12.4]}
35... Bxd4 {[%clk 0:01:56]} 36. exd4 {[%clk 0:00:13.3]} 36... Ng4 {[%clk
0:01:55.9]} 37. h3 {[%clk 0:00:11.8]} 37... Nh6 {[%clk 0:01:56.2]} 38. Kd3
{[%clk 0:00:09.9]} 38... h4 {[%clk 0:01:53.8]} 39. gxh4 {[%clk 0:00:06.4]} 39...
Nf5 {[%clk 0:01:54.4]} 40. Bf3 {[%clk 0:00:06]} 40... Nxh4 {[%clk 0:01:53.9]}
41. Bh1 {[%clk 0:00:04.5]} 41... g5 {[%clk 0:01:51.6]} 42. Ke3 {[%clk
0:00:03.3]} 42... Nf5+ {[%clk 0:01:50.6]} 43. Kd3 {[%clk 0:00:03.2]} 43... Nh4
{[%clk 0:01:44.9]} 44. Ke3 {[%clk 0:00:03.2]} 44... f6 {[%clk 0:01:45.6]} 45. f4
{[%clk 0:00:03.5]} 45... Nf5+ {[%clk 0:01:45.6]} 46. Kd3 {[%clk 0:00:01.5]}
46... gxf4 {[%clk 0:01:46.1]} 47. Bf3 {[%clk 0:00:02.2]} 47... Nh4 {[%clk
0:01:46.7]} 48. Bg4 {[%clk 0:00:02.4]} 48... f5 {[%clk 0:01:46.8]} 49. Bd1
{[%clk 0:00:02.7]} 49... Ke7 {[%clk 0:01:37.8]} 50. Bb3 {[%clk 0:00:02.3]} 50...
Ke6 {[%clk 0:01:38.2]} 51. Ke2 {[%clk 0:00:02.4]} 51... f3+ {[%clk 0:01:25.2]}
52. Kf2 {[%clk 0:00:02.5]} 52... f4 {[%clk 0:01:25.9]} 53. Ba2 {[%clk
0:00:01.9]} 53... Kd6 {[%clk 0:01:22.9]} 54. Bb3 {[%clk 0:00:01.5]} 54... Nf5
{[%clk 0:01:23.5]} 55. Ba2 {[%clk 0:00:01]} 55... Nxd4 {[%clk 0:01:23.9]} 56.
Bb1 {[%clk 0:00:01.3]} 56... Ke5 {[%clk 0:01:23.6]} 57. h4 {[%clk 0:00:01.7]}
57... Nf5 {[%clk 0:00:55.9]} 58. Kxf3 {[%clk 0:00:01.3]} 58... Nxh4+ {[%clk
0:00:55.7]} 59. Kg4 {[%clk 0:00:01.5]} 59... Ng2 {[%clk 0:00:56]} 60. Kf3 {[%clk
0:00:01.9]} 60... Ne3 {[%clk 0:00:56.5]} 61. Bd3 {[%clk 0:00:02]} 61... Nc4
{[%clk 0:00:56.6]} 62. Bh7 {[%clk 0:00:01.4]} 62... Nd6 {[%clk 0:00:56.7]} 63.
Bg8 {[%clk 0:00:01.7]} 63... Ne4 {[%clk 0:00:56.1]} 64. Bxd5 {[%clk 0:00:01.6]}
64... Nd2+ {[%clk 0:00:48.9]} 65. Kg4 {[%clk 0:00:01.1]} 65... Nf1 {[%clk
0:00:47.3]} 66. Bf3 {[%clk 0:00:02]} 66... Ne3+ {[%clk 0:00:47.8]} 67. Kg5
{[%clk 0:00:01.9]} 67... Nf5 {[%clk 0:00:46.2]} 68. Bh5 {[%clk 0:00:02.3]} 68...
Nd4 {[%clk 0:00:46.4]} 69. Bg4 {[%clk 0:00:02.2]} 69... Ke4 {[%clk 0:00:46.8]}
70. Bh5 {[%clk 0:00:02.3]} 70... Ke3 {[%clk 0:00:47.4]} 71. Bg4 {[%clk
0:00:02.2]} 71... Nf3+ {[%clk 0:00:47.8]} 72. Kf5 {[%clk 0:00:02]} 72... Nh2
{[%clk 0:00:47.7]} 73. Bh5 {[%clk 0:00:02.2]} 73... Nf1 {[%clk 0:00:47.9]} 74.
Ke5 {[%clk 0:00:01.9]} 74... Ng3 {[%clk 0:00:48]} 75. Bg4 {[%clk 0:00:02.3]}
75... Nh1 {[%clk 0:00:46.4]} 76. Kd5 {[%clk 0:00:02.4]} 76... Nf2 {[%clk
0:00:45.1]} 77. Bh5 {[%clk 0:00:02.8]} 77... Nh3 {[%clk 0:00:45.3]} 78. Ke5
{[%clk 0:00:02.8]} 78... Ng5 {[%clk 0:00:45.6]} 79. Bg4 {[%clk 0:00:02.9]} 79...
Ne4 {[%clk 0:00:46.1]} 80. Kf5 {[%clk 0:00:02.9]} 80... Nf2 {[%clk 0:00:45.2]}
81. Bh5 {[%clk 0:00:03.1]} 81... Nh1 {[%clk 0:00:46.1]} 82. Kg4 {[%clk 0:00:03]}
82... Ng3 {[%clk 0:00:46.1]} 83. Be8 {[%clk 0:00:02.5]} 83... Ne4 {[%clk
0:00:45.2]} 84. Bc6 {[%clk 0:00:02.6]} 84... f3 {[%clk 0:00:44.4]} 85. Bb5
{[%clk 0:00:02.9]} 85... Nc3 {[%clk 0:00:42]} 86. Bf1 {[%clk 0:00:02.8]} 86...
Kf2 {[%clk 0:00:39.2]} 87. Bc4 {[%clk 0:00:02.2]} 87... Nd1 {[%clk 0:00:39]} 88.
Bd5 {[%clk 0:00:02.3]} 88... Ne3+ {[%clk 0:00:39.4]} 0-1

[Event "*** SCC Grand Prix: Titled Tuesday Blitz"]
[Site "Chess.com"]
[Date "2020.06.09"]
[Round "1"]
[White "Oligan22"]
[Black "obliviate12"]
[Result "0-1"]
[WhiteElo "2421"]
[BlackElo "2804"]
[TimeControl "180+1"]
[EndTime "9:09:14 PDT"]
[Termination "obliviate12 won by resignation"]

1. e4 {[%clk 0:02:59.2]} 1... c6 {[%clk 0:02:59.4]} 2. d4 {[%clk 0:02:57.8]}
2... d5 {[%clk 0:03:00.3]} 3. exd5 {[%clk 0:02:58.7]} 3... cxd5 {[%clk
0:03:00.6]} 4. Bd3 {[%clk 0:02:57.7]} 4... Nf6 {[%clk 0:02:54.2]} 5. c3 {[%clk
0:02:56.5]} 5... Qc7 {[%clk 0:02:47]} 6. Nf3 {[%clk 0:02:49]} 6... Bg4 {[%clk
0:02:44.7]} 7. h3 {[%clk 0:02:49.4]} 7... Bh5 {[%clk 0:02:43.5]} 8. O-O {[%clk
0:02:48.5]} 8... Nc6 {[%clk 0:02:39]} 9. Bg5 {[%clk 0:02:48.3]} 9... e6 {[%clk
0:02:37.2]} 10. Re1 {[%clk 0:02:47.6]} 10... Bd6 {[%clk 0:02:29.1]} 11. Nbd2
{[%clk 0:02:44.9]} 11... Bg6 {[%clk 0:02:27.3]} 12. Bxg6 {[%clk 0:02:41.2]}
12... hxg6 {[%clk 0:02:26.8]} 13. Qe2 {[%clk 0:02:40.4]} 13... O-O {[%clk
0:02:15.7]} 14. Ne5 {[%clk 0:02:36.3]} 14... Rfe8 {[%clk 0:02:05.3]} 15. f4
{[%clk 0:02:13.6]} 15... Nd7 {[%clk 0:01:53.7]} 16. Bh4 {[%clk 0:02:02.4]} 16...
Nf8 {[%clk 0:01:48.6]} 17. Qf3 {[%clk 0:01:54.6]} 17... Rab8 {[%clk 0:01:40.8]}
18. g4 {[%clk 0:01:48.6]} 18... f6 {[%clk 0:01:35.6]} 19. Nd3 {[%clk 0:01:47.5]}
19... b5 {[%clk 0:01:35.9]} 20. a3 {[%clk 0:01:47.1]} 20... Qf7 {[%clk
0:01:23.6]} 21. Bg3 {[%clk 0:01:37.6]} 21... a5 {[%clk 0:01:12.8]} 22. b4 {[%clk
0:01:28.4]} 22... Rbc8 {[%clk 0:01:08.2]} 23. Nc5 {[%clk 0:01:25.9]} 23... Nd7
{[%clk 0:00:57.9]} 24. Re2 {[%clk 0:01:22.9]} 24... Ra8 {[%clk 0:00:49.9]} 25.
Rae1 {[%clk 0:01:20.1]} 25... axb4 {[%clk 0:00:47]} 26. axb4 {[%clk 0:01:21]}
26... Bxc5 {[%clk 0:00:38.5]} 27. dxc5 {[%clk 0:01:13.8]} 27... Ra3 {[%clk
0:00:38.6]} 28. Nb1 {[%clk 0:01:07.2]} 28... Rb3 {[%clk 0:00:38]} 29. Nd2 {[%clk
0:01:06]} 29... Ra3 {[%clk 0:00:37.4]} 30. Nb1 {[%clk 0:01:05.9]} 30... Rb3
{[%clk 0:00:34.2]} 31. Qd3 {[%clk 0:00:33.3]} 31... Nxb4 {[%clk 0:00:33.5]} 32.
Qxb5 {[%clk 0:00:33.2]} 32... Rc8 {[%clk 0:00:28.8]} 33. cxb4 {[%clk 0:00:32.5]}
33... Rxg3+ {[%clk 0:00:28.2]} 34. Kf2 {[%clk 0:00:31.5]} 34... Rb3 {[%clk
0:00:28]} 35. Rxe6 {[%clk 0:00:30.7]} 35... Kh7 {[%clk 0:00:24.3]} 36. Re7
{[%clk 0:00:26.9]} 36... Qg8 {[%clk 0:00:19.5]} 37. Qxd7 {[%clk 0:00:26]} 37...
Rxb4 {[%clk 0:00:19.4]} 38. c6 {[%clk 0:00:25.5]} 38... Ra8 {[%clk 0:00:15.6]}
39. c7 {[%clk 0:00:22.3]} 39... Rxf4+ {[%clk 0:00:15.2]} 40. Kg1 {[%clk
0:00:21.7]} 40... Rc4 {[%clk 0:00:16.1]} 41. Re8 {[%clk 0:00:18.4]} 41... Rxe8
{[%clk 0:00:14.5]} 42. Rxe8 {[%clk 0:00:19.3]} 42... Rxc7 {[%clk 0:00:15]} 43.
Rxg8 {[%clk 0:00:09.4]} 43... Rxd7 {[%clk 0:00:15.1]} 44. Ra8 {[%clk 0:00:10]}
44... Rc7 {[%clk 0:00:14.9]} 45. Nd2 {[%clk 0:00:08.1]} 45... Rc3 {[%clk
0:00:15]} 46. h4 {[%clk 0:00:04.1]} 46... Rg3+ {[%clk 0:00:14.8]} 47. Kf2 {[%clk
0:00:04.2]} 47... Rxg4 {[%clk 0:00:15.7]} 48. Rd8 {[%clk 0:00:04.3]} 48... Rxh4
{[%clk 0:00:12.1]} 49. Rxd5 {[%clk 0:00:03.3]} 49... g5 {[%clk 0:00:12.1]} 50.
Nf3 {[%clk 0:00:02.9]} 50... Rf4 {[%clk 0:00:12.5]} 51. Kg3 {[%clk 0:00:02.5]}
51... Kg6 {[%clk 0:00:13.4]} 52. Nd4 {[%clk 0:00:02.6]} 52... Re4 {[%clk
0:00:13.1]} 53. Nf3 {[%clk 0:00:02.7]} 53... Re3 {[%clk 0:00:13]} 54. Kf2 {[%clk
0:00:03.3]} 54... Rc3 {[%clk 0:00:13.5]} 55. Rd6 {[%clk 0:00:03.6]} 55... g4
{[%clk 0:00:12.9]} 56. Nh4+ {[%clk 0:00:03]} 56... Kg5 {[%clk 0:00:12.8]} 57.
Ng2 {[%clk 0:00:03.8]} 57... Rc2+ {[%clk 0:00:12.4]} 58. Kg3 {[%clk 0:00:03.9]}
58... Rc3+ {[%clk 0:00:12.9]} 59. Kf2 {[%clk 0:00:03.6]} 59... f5 {[%clk
0:00:13.4]} 60. Rd5 {[%clk 0:00:02.8]} 60... g6 {[%clk 0:00:13.3]} 61. Ra5
{[%clk 0:00:02.7]} 61... Rc2+ {[%clk 0:00:12.3]} 62. Kg3 {[%clk 0:00:02.9]}
62... Rc3+ {[%clk 0:00:12.8]} 63. Kf2 {[%clk 0:00:03.2]} 63... g3+ {[%clk
0:00:12.7]} 64. Kf1 {[%clk 0:00:03.1]} 64... Kg4 {[%clk 0:00:12.8]} 65. Ra4+
{[%clk 0:00:01.4]} 65... Kg5 {[%clk 0:00:12.8]} 66. Ra5 {[%clk 0:00:01.4]} 66...
Rc2 {[%clk 0:00:12.2]} 67. Kg1 {[%clk 0:00:01.2]} 67... Rc1+ {[%clk 0:00:12]}
68. Ne1 {[%clk 0:00:01.4]} 68... Rxe1+ {[%clk 0:00:12.2]} 69. Kg2 {[%clk
0:00:02.3]} 69... Re3 {[%clk 0:00:13.1]} 70. Rb5 {[%clk 0:00:01.6]} 70... Kg4
{[%clk 0:00:12.8]} 71. Rb6 {[%clk 0:00:02]} 71... g5 {[%clk 0:00:12.1]} 72. Rb4+
{[%clk 0:00:01.7]} 72... f4 {[%clk 0:00:12.2]} 73. Rc4 {[%clk 0:00:01.9]} 73...
Re2+ {[%clk 0:00:12.3]} 0-1